fUSD/lending_fUSD_20240107
["ID","MTS","AMOUNT","RATE_DAILY","PERIOD"]
[310690565,1704641496790,-500.0,0.00034632,30]
[310690566,1704641496799,-204.21902199,0.00034632,30]
[310690567,1704641496809,-3452.59317612,0.00034632,30]
[310690568,1704641496819,-12085.99758621,0.00034632,30]
[310690569,1704641496830,-20656.79387632,0.00034632,30]
[310690570,1704641496841,-10853.42918857,0.00034632,30]
[310690571,1704641496851,-21624.57280004,0.00034632,30]
[310690572,1704641496860,-1000.0,0.00034632,30]
[310690573,1704641496874,-5242.06764467,0.00034632,30]
[310690574,1704641496885,-180.92454965,0.00034632,120]
[310690575,1704641496895,-30142.25807681,0.00034632,30]
[310690576,1704641496905,-300.0,0.00034632,62]
[310690577,1704641496916,-5000.0,0.00034632,120]
[310690578,1704641496926,-3151.8535,0.00034632,30]
[310690579,1704641496936,-1069.38748822,0.00034632,15]
[310690580,1704641496946,-300.0,0.00034632,15]
[310690581,1704641496956,-15288.55808387,0.00034632,30]
[310690582,1704641496967,-3000.00272581,0.00034632,2]
[310690583,1704641496978,-1946.282812,0.00034632,30]
[310690584,1704641496989,-304.715023,0.00034632,30]
[310690585,1704641496999,-1270.886408,0.00034632,2]
[310690586,1704641497008,-10043.93667111,0.00034632,8]
[310690587,1704641497018,-1964.456484,0.00034632,30]
[310690588,1704641497028,-2000.0,0.00034632,2]
[310690589,1704641497039,-2000.0,0.00034632,2]
[310690590,1704641497051,-334.61,0.00034632,2]
[310690591,1704641497061,-1000.0,0.00034654,7]
[310690592,1704641497071,-1000.0,0.00034654,7]
[310690593,1704641497082,-1000.0,0.00034654,7]
[310690594,1704641497093,-1000.0,0.00034654,7]
[310690595,1704641497103,-180.0,0.00034658,2]
[310690596,1704641497113,-450.0,0.0003466,3]
[310690597,1704641497123,-150.0,0.00034664,120]
[310690598,1704641497134,-156.79378255,0.0003468,30]
[310690599,1704641497144,-325.18487251,0.000347,7]
[310690600,1704641497154,-153.84,0.00034703,2]
[310690601,1704641497163,-155.80831798,0.00034717,14]
[310690602,1704641497173,-150.31151548,0.00034724,2]
[310690603,1704641497183,-2100.03,0.00034737,7]
[310690604,1704641497193,-2100.03,0.00034737,7]
[310690605,1704641497203,-2319.8303323,0.00034747,2]
[310690606,1704641497212,-2131.4849616,0.00034747,2]
[310690607,1704641497221,-150.0,0.00034757,120]
[310690608,1704641497231,-155.61285522,0.00034771,14]
[310690609,1704641497240,-715.64132272,0.00034785,4]
[310690610,1704641497251,-150.0,0.0003479,3]
[310690611,1704641497261,-150.0,0.00034793,120]
[310690612,1704641497270,-9007.913022,0.00034794,2]
[310690613,1704641497280,-60364.552899,0.00034794,2]
[310690614,1704641497289,-3102.026515,0.00034794,2]
[310690615,1704641497299,-203.0,0.00034796,15]
[310690616,1704641497308,-333.40107,0.00034798,2]
[310690617,1704641497318,-89609.65181961,0.00034799,2]
[310690618,1704641497327,-150.0,0.00034799,2]
[310690619,1704641497338,-2243.530078,0.000348,2]
[310690620,1704641497348,-1000.0,0.000348,2]
[310690621,1704641497357,-1000.0,0.000348,2]
[310690622,1704641497367,-155.25405549,0.00034815,14]
[310690623,1704641497376,-450.0,0.0003482,3]
[310690624,1704641497387,-1000.0,0.00034822,10]
[310690625,1704641497396,-500.0,0.0003484,2]
[310690626,1704641497406,-155.80831798,0.00034844,14]
[310690627,1704641497417,-126268.31310481,0.0003487,4]
[310690628,1704641497426,-2865.3626424,0.00034876,2]
[310690629,1704641497435,-2676.7732493,0.00034876,2]
[310690630,1704641497445,-70663.8879434,0.00034876,2]
[310690631,1704641497455,-801.32,0.00034877,2]
[310690632,1704641497464,-1877.64,0.00034877,2]
[310690633,1704641497474,-10240.91480042,0.0003488,2]
[310690634,1704641497483,-10000.0,0.0003488,3]
[310690635,1704641497493,-154.91150368,0.00034883,14]
[310690636,1704641497503,-161.15323196,0.00034885,14]
[310690637,1704641497512,-156.8327423,0.00034887,14]
[310690638,1704641497522,-6364.0,0.0003489,3]
[310690639,1704641497531,-11655.46930258,0.00034899,2]
[310690640,1704641497541,-500.0,0.000349,120]
[310690641,1704641497551,-1387993.02088091,0.000349,7]
[310690642,1704641497560,-5449.21819482,0.000349,2]
[310690643,1704641497570,-5449.21819478,0.000349,2]
[310690644,1704641497580,-5449.21819478,0.000349,2]
[310690645,1704641497590,-5449.21819478,0.000349,2]
[310690646,1704641497599,-5449.21819478,0.000349,2]
[310690647,1704641497609,-5449.21819478,0.000349,2]
[310690648,1704641497619,-5449.21819478,0.000349,2]
[310690649,1704641497629,-5449.21819478,0.000349,2]
[310690650,1704641497639,-1995.76220523,0.000349,2]
[310690651,1704641497649,-1995.76220515,0.000349,2]
[310690652,1704641497659,-1995.76220515,0.000349,2]
[310690653,1704641497669,-1995.76220515,0.000349,2]
[310690654,1704641497680,-1995.76220515,0.000349,2]
[310690655,1704641497690,-1995.76220515,0.000349,2]
[310690656,1704641497700,-1995.76220515,0.000349,2]
[310690657,1704641497709,-1995.76220515,0.000349,2]
[310690658,1704641497719,-1995.76220515,0.000349,2]
[310690659,1704641497730,-9936.7810062,0.000349,4]
[310690660,1704641497739,-150.0,0.00034912,120]
[310690661,1704641497748,-155.76493732,0.00034914,14]
[310690662,1704641497758,-150.0,0.0003492,7]
[310690663,1704641497767,-160.24170402,0.0003492,7]
[310690664,1704641497778,-150.0,0.0003492,7]
[310690665,1704641497789,-150.0,0.0003492,7]
[310690666,1704641497801,-12010.550697,0.00034931,2]
[310690667,1704641497811,-80486.070532,0.00034931,2]
[310690668,1704641497823,-4136.035353,0.00034931,2]
[310690669,1704641497832,-150.0,0.00034955,120]
[310690670,1704641497841,-186.81894592,0.00034976,7]
[310690671,1704641497851,-3410.8949526,0.00034976,2]
[310690672,1704641497860,-3222.0615369,0.00034976,2]
[310690673,1704641497869,-86366.974153,0.00034976,2]
[310690674,1704641497879,-155.25405549,0.00034979,14]
[310690675,1704641497889,-737.01528215,0.0003498,3]
[310690676,1704641497899,-500.0,0.00034987,4]
[310690677,1704641497909,-8573.0,0.0003499,3]
[310690678,1704641497918,-569.87347436,0.00034991,4]
[310690679,1704641497928,-1203.35,0.00034999,2]
[310690680,1704641497937,-100000.0,0.00035,5]
[310690681,1704641497946,-155.0,0.00035,2]
[310690682,1704641497956,-350.29021188,0.00035,4]
[310690683,1704641497966,-16401.42035786,0.00035,2]
[310690684,1704641497975,-1000.0,0.00035,60]
[310690685,1704641497984,-1200.0,0.00035,36]
[310690686,1704641497994,-2000.0,0.00035,3]
[310690687,1704641498003,-40230.38617003,0.00035,2]
[310690688,1704641498012,-20950.34841633,0.00035,2]
[310690689,1704641498022,-32238.88927356,0.00035,2]
[310690690,1704641498033,-2753.88702118,0.00035,2]
[310690691,1704641498043,-1254.85509732,0.00035,4]
[310690692,1704641498052,-1000.0,0.00035,11]
[310690693,1704641498062,-1000.0,0.00035,23]
[310690694,1704641498071,-235.3281786,0.00035,2]
[310690695,1704641498081,-2500.0,0.00035,2]
[310690696,1704641498090,-9799.1100192,0.00035,2]
[310690697,1704641498100,-5000.0,0.00035,7]
[310690698,1704641498110,-5000.0,0.00035,10]
[310690699,1704641498119,-5000.0,0.00035,5]
[310690700,1704641498129,-10000.0,0.00035,7]
[310690701,1704641498138,-35000.0,0.00035,5]
[310690702,1704641498147,-5519.84553567,0.00035,4]
[310690703,1704641498157,-2492.77118553,0.00035,2]
[310690704,1704641498167,-1002.0,0.00035,3]
[310690705,1704641498178,-200.0,0.00035,5]
[310690706,1704641498190,-33349.48260087,0.00035,4]
[310690707,1704641498200,-81486.00236044,0.00035,2]
[310690708,1704641498210,-1091.50541555,0.00035,14]
[310690709,1704641498220,-1000.0,0.00035,15]
[310690710,1704641498231,-1000.0,0.00035,15]
[310690711,1704641498242,-1000.0,0.00035,15]
[310690712,1704641498252,-1000.0,0.00035,15]
[310690713,1704641498262,-1000.0,0.00035,15]
[310690714,1704641498271,-405.69749812,0.00035,15]
[310690715,1704641498281,-5000.0,0.00035,7]
[310690716,1704641498290,-5000.0,0.00035,7]
[310690717,1704641498299,-5000.0,0.00035,7]
[310690718,1704641498309,-5000.0,0.00035,7]
[310690719,1704641498318,-5000.0,0.00035,7]
[310690720,1704641498327,-5000.0,0.00035,7]
[310690721,1704641498337,-5000.0,0.00035,7]
[310690722,1704641498347,-3908.0,0.00035,7]
[310690723,1704641498356,-5000.0,0.00035,7]
[310690724,1704641498366,-5000.0,0.00035,7]
[310690725,1704641498375,-2150.80032536,0.00035,2]
[310690726,1704641498387,-757.62053273,0.00035,5]
[310690727,1704641498397,-2000.0,0.00035,7]
[310690728,1704641498406,-3335.0,0.00035,30]
[310690729,1704641498415,-1041.0,0.00035,5]
[310690730,1704641498424,-250.0,0.00035,4]
[310690731,1704641498433,-250.0,0.00035,4]
[310690732,1704641498443,-250.0,0.00035,4]
[310690733,1704641498452,-254.0,0.00035,4]
[310690734,1704641498462,-10046.362303,0.00035,2]
[310690735,1704641498471,-2033.99805949,0.00035,30]
[310690736,1704641498482,-1018.11,0.00035,60]
[310690737,1704641498491,-46387.0,0.00035,15]
[310690738,1704641498500,-150.0,0.00035,7]
[310690739,1704641498510,-19840.94857331,0.00035,4]
[310690740,1704641498520,-8800.0,0.00035,4]
[310690741,1704641498529,-266.16419828,0.00035,3]
[310690742,1704641498539,-3057.01399099,0.00035,7]
[310690743,1704641498548,-1000.0,0.00035,14]
[310690744,1704641498558,-6540.0,0.00035,30]
[310690745,1704641498567,-155.51278721,0.00035,4]
[310690746,1704641498576,-200.0,0.00035,5]
[310690747,1704641498585,-417.56010923,0.00035,5]
[310690748,1704641498595,-107188.93298618,0.00035,3]
[310690749,1704641498604,-1341009.97623407,0.00035,7]
[310690750,1704641498613,-1480.23162179,0.00035,5]
[310690751,1704641498622,-146421.39000944,0.00035,5]
[310690752,1704641498633,-850.0,0.00035,3]
[310690753,1704641498643,-3000.0,0.00035,2]
[310690754,1704641498652,-624.72759044,0.00035,2]
[310690755,1704641498661,-624.72759044,0.00035,2]
[310690756,1704641498670,-871.39999407,0.00035,2]
[310690757,1704641498679,-871.39999407,0.00035,2]
[310690758,1704641498688,-495.26268599,0.00035,2]
[310690759,1704641498698,-312.61203003,0.00035,2]
[310690760,1704641498708,-312.61203003,0.00035,2]
[310690761,1704641498718,-312.61203003,0.00035,2]
[310690762,1704641498727,-500.0,0.00035,3]
[310690763,1704641498738,-300.0,0.00035,8]
[310690764,1704641498747,-150.0,0.00035,8]
[310690765,1704641498760,-150.0,0.00035,8]
[310690766,1704641498769,-150.0,0.00035,8]
[310690767,1704641498778,-150.0,0.00035,8]
[310690768,1704641498787,-150.0,0.00035,8]
[310690769,1704641498797,-150.0,0.00035,8]
[310690770,1704641498806,-150.0,0.00035,8]
[310690771,1704641498815,-150.0,0.00035,8]
[310690772,1704641498826,-150.0,0.00035,8]
[310690773,1704641498835,-150.0,0.00035,8]
[310690774,1704641498844,-150.0,0.00035,8]
[310690775,1704641498853,-150.0,0.00035,8]
[310690776,1704641498864,-150.0,0.00035,8]
[310690777,1704641498882,-150.0,0.00035,8]
[310690778,1704641498894,-150.0,0.00035,8]
[310690779,1704641498914,-150.0,0.00035,8]
[310690780,1704641498925,-150.0,0.00035,8]
[310690781,1704641498936,-150.0,0.00035,8]
[310690782,1704641498946,-150.0,0.00035,8]
[310690783,1704641498955,-150.0,0.00035,8]
[310690784,1704641498966,-150.0,0.00035,8]
[310690785,1704641498975,-150.0,0.00035,8]
[310690786,1704641498984,-150.0,0.00035,8]
[310690787,1704641498993,-150.0,0.00035,8]
[310690788,1704641499002,-150.0,0.00035,8]
[310690789,1704641499012,-150.0,0.00035,8]
[310690790,1704641499021,-200.251621,0.00035,8]
[310690791,1704641499031,-600.0,0.00035,2]
[310690792,1704641499115,-1036.8329214,0.00035,2]
[310690793,1704641499126,-164.0,0.00035,2]
[310690794,1704641499136,-19099.6006963,0.00035,2]
[310690795,1704641499145,-164.22078078,0.00035,2]
[310690796,1704641499154,-750.0,0.00035,2]
[310690797,1704641499164,-1219.29506252,0.00035,120]
[310690798,1704641499173,-1552.78230205,0.00035,120]
[310690799,1704641499183,-17000.0,0.00035,2]
[310690800,1704641499192,-11396.598039,0.00035,2]
[310690801,1704641499202,-33307.06659789,0.00035,2]
[310690802,1704641499211,-150.0,0.00035,30]
[310690803,1704641499220,-312149.36500274,0.00035,12]
[310690804,1704641499230,-32525.95740367,0.00035,4]
[310690805,1704641499239,-582.54913738,0.00035001,14]
[310690806,1704641499248,-155.76493732,0.00035001,14]
[310690807,1704641499257,-2240.99323147,0.00035008,14]
[310690808,1704641499267,-2100.03,0.0003501,7]
[310690809,1704641499276,-2100.03,0.0003501,7]
[310690810,1704641499285,-3000.0,0.0003501,2]
[310690811,1704641499294,-5449.21819478,0.00035019,2]
[310690812,1704641499303,-450.0,0.0003502,10]
[310690813,1704641499313,-450.0,0.0003502,3]
[310690814,1704641499322,-3000.0,0.0003502,2]
[310690815,1704641499331,-3000.0,0.0003503,2]
[310690816,1704641499340,-2240.99323147,0.00035036,14]
[310690817,1704641499350,-5194.634259,0.0003504,2]
[310690818,1704641499359,-155.76493732,0.00035044,14]
[310690819,1704641499367,-150.0,0.00035057,120]
[310690820,1704641499377,-500.0,0.00035061,2]
[310690821,1704641499387,-15013.188371,0.00035068,2]
[310690822,1704641499396,-100607.588165,0.00035068,2]
[310690823,1704641499406,-5170.044191,0.00035068,2]
[310690824,1704641499415,-155.80831798,0.00035084,14]
[310690825,1704641499424,-150.0,0.0003511,120]
[310690826,1704641499434,-176.66666666,0.00035114,14]
[310690827,1704641499443,-155.80831798,0.00035118,14]
[310690828,1704641499451,-2240.99323147,0.0003512,14]
[310690829,1704641499461,-2240.99323147,0.00035134,14]
[310690830,1704641499471,-150.0,0.00035148,7]
[310690831,1704641499480,-757.74,0.00035151,2]
[310690832,1704641499489,-627.54,0.00035151,2]
[310690833,1704641499499,-300.0,0.00035151,2]
[310690834,1704641499508,-814.88,0.00035151,2]
[310690835,1704641499519,-300.0,0.00035151,2]
[310690836,1704641499529,-300.0,0.00035151,2]
[310690837,1704641499539,-587.1,0.00035151,2]
[310690838,1704641499549,-150.0,0.00035179,120]
[310690839,1704641499559,-450.0,0.0003518,3]
[310690840,1704641499569,-150.0,0.00035197,7]
[310690841,1704641499580,-234.40107,0.00035198,4]
[310690842,1704641499589,-157.59,0.000352,3]
[310690843,1704641499601,-157.59,0.000352,3]
[310690844,1704641499611,-157.59,0.000352,3]
[310690845,1704641499620,-157.59,0.000352,3]
[310690846,1704641499629,-4186.15,0.000352,3]
[310690847,1704641499638,-4186.15,0.000352,3]
[310690848,1704641499648,-4186.15,0.000352,3]
[310690849,1704641499657,-4186.15,0.000352,3]
[310690850,1704641499666,-4186.15,0.000352,3]
[310690851,1704641499677,-4186.15,0.000352,3]
[310690852,1704641499686,-4186.15,0.000352,3]
[310690853,1704641499695,-4186.15,0.000352,3]
[310690854,1704641499704,-4186.15,0.000352,3]
[310690855,1704641499713,-4186.15,0.000352,3]
[310690856,1704641499722,-4186.15,0.000352,3]
[310690857,1704641499732,-4186.15,0.000352,3]
[310690858,1704641499742,-4186.15,0.000352,3]
[310690859,1704641499752,-4186.15,0.000352,3]
[310690860,1704641499763,-4186.15,0.000352,3]
[310690861,1704641499773,-4186.15,0.000352,3]
[310690862,1704641499783,-4186.15,0.000352,3]
[310690863,1704641499820,-4186.15,0.000352,3]
[310690864,1704641499832,-4186.15,0.000352,3]
[310690865,1704641499843,-4186.15,0.000352,3]
[310690866,1704641499854,-154.91150368,0.000352,14]
[310690867,1704641499865,-150.0,0.000352,30]
[310690868,1704641499874,-150.0,0.00035225,120]
[310690869,1704641499886,-938.82,0.00035225,2]
[310690870,1704641499896,-400.66,0.00035225,2]
[310690871,1704641499905,-400.66,0.00035225,2]
[310690872,1704641499914,-938.82,0.00035225,2]
[310690873,1704641499923,-400.66,0.00035225,2]
[310690874,1704641499932,-938.82,0.00035225,2]
[310690875,1704641499942,-400.66,0.00035225,2]
[310690876,1704641499951,-938.82,0.00035225,2]
[310690877,1704641499960,-938.82,0.00035225,2]
[310690878,1704641499969,-400.66,0.00035225,2]
[310690879,1704641499980,-400.66,0.00035225,2]
[310690880,1704641499989,-938.82,0.00035225,2]
[310690881,1704641500000,-400.66,0.00035225,2]
[310690882,1704641500010,-938.82,0.00035225,2]
[310690883,1704641500021,-400.66,0.00035225,2]
[310690884,1704641500031,-938.82,0.00035225,2]
[310690885,1704641500041,-400.66,0.00035225,2]
[310690886,1704641500051,-400.66,0.00035225,2]
[310690887,1704641500060,-400.66,0.00035225,2]
[310690888,1704641500071,-150.31151548,0.00035238,2]
[310690889,1704641500082,-2240.99323147,0.00035261,14]
[310690890,1704641500091,-500.0,0.00035281,2]
[310690891,1704641500100,-2100.03,0.00035283,7]
[310690892,1704641500110,-2100.03,0.00035283,7]
[310690893,1704641500120,-255.13724169,0.00035287,14]
[310690894,1704641500130,-157.00264211,0.00035295,14]
[310690895,1704641500140,-626.74,0.00035297,2]
[310690896,1704641500150,-450.0,0.0003534,3]
[310690897,1704641500159,-21018.46372,0.00035342,2]
[310690898,1704641500168,-140850.623431,0.00035342,2]
[310690899,1704641500178,-7238.061868,0.00035342,2]
[310690900,1704641500187,-582.54913738,0.00035355,14]
[310690901,1704641500197,-156.53609999,0.0003536,14]
[310690902,1704641500207,-1000.0,0.0003537,10]
[310690903,1704641500217,-150.0,0.00035375,120]
[310690904,1704641500226,-150.0,0.00035376,7]
[310690905,1704641500235,-155.80831798,0.00035394,14]
[310690906,1704641500244,-450.0,0.00035396,10]
[310690907,1704641500253,-150.0,0.000354,30]
[310690908,1704641500263,-1000.0,0.00035455,2]
[310690909,1704641500272,-2240.99323147,0.00035456,14]
[310690910,1704641500282,-900.0,0.00035463,2]
[310690911,1704641500290,-900.0,0.00035463,2]
[310690912,1704641500299,-900.0,0.00035463,2]
[310690913,1704641500309,-900.0,0.00035463,2]
[310690914,1704641500317,-900.0,0.00035463,2]
[310690915,1704641500327,-900.0,0.00035463,2]
[310690916,1704641500336,-900.0,0.00035463,2]
[310690917,1704641500345,-900.0,0.00035463,2]
[310690918,1704641500353,-900.0,0.00035463,2]
[310690919,1704641500363,-900.0,0.00035463,2]
[310690920,1704641500373,-900.0,0.00035463,2]
[310690921,1704641500383,-900.0,0.00035463,2]
[310690922,1704641500392,-900.0,0.00035463,2]
[310690923,1704641500401,-900.0,0.00035463,2]
[310690924,1704641500412,-900.0,0.00035463,2]
[310690925,1704641500421,-900.0,0.00035463,2]
[310690926,1704641500431,-900.0,0.00035463,2]
[310690927,1704641500440,-900.0,0.00035463,2]
[310690928,1704641500449,-900.0,0.00035463,2]
[310690929,1704641500459,-900.0,0.00035463,2]
[310690930,1704641500469,-900.0,0.00035463,2]
[310690931,1704641500478,-900.0,0.00035463,2]
[310690932,1704641500487,-900.0,0.00035463,2]
[310690933,1704641500497,-900.0,0.00035463,2]
[310690934,1704641500506,-900.0,0.00035463,2]
[310690935,1704641500515,-900.0,0.00035463,2]
[310690936,1704641500524,-900.0,0.00035463,2]
[310690937,1704641500533,-900.0,0.00035463,2]
[310690938,1704641500543,-900.0,0.00035463,2]
[310690939,1704641500552,-900.0,0.00035463,2]
[310690940,1704641500561,-900.0,0.00035463,2]
[310690941,1704641500571,-900.0,0.00035463,2]
[310690942,1704641500580,-900.0,0.00035463,2]
[310690943,1704641500589,-900.0,0.00035463,2]
[310690944,1704641500598,-900.0,0.00035463,2]
[310690945,1704641500608,-900.0,0.00035463,2]
[310690946,1704641500617,-900.0,0.00035463,2]
[310690947,1704641500627,-900.0,0.00035463,2]
[310690948,1704641500639,-900.0,0.00035463,2]
[310690949,1704641500649,-900.0,0.00035463,2]
[310690950,1704641500658,-900.0,0.00035463,2]
[310690951,1704641500668,-900.0,0.00035463,2]
[310690952,1704641500677,-900.0,0.00035463,2]
[310690953,1704641500686,-900.0,0.00035463,2]
[310690954,1704641500696,-900.0,0.00035463,2]
[310690955,1704641500705,-900.0,0.00035463,2]
[310690956,1704641500714,-900.0,0.00035463,2]
[310690957,1704641500723,-900.0,0.00035463,2]
[310690958,1704641500732,-900.0,0.00035463,2]
[310690959,1704641500742,-900.0,0.00035463,2]
[310690960,1704641500752,-900.0,0.00035463,2]
[310690961,1704641500761,-900.0,0.00035463,2]
[310690962,1704641500771,-900.0,0.00035463,2]
[310690963,1704641500781,-900.0,0.00035463,2]
[310690964,1704641500790,-900.0,0.00035463,2]
[310690965,1704641500800,-900.0,0.00035463,2]
[310690966,1704641500809,-900.0,0.00035463,2]
[310690967,1704641500819,-900.0,0.00035463,2]
[310690968,1704641500829,-900.0,0.00035463,2]
[310690969,1704641500839,-900.0,0.00035463,2]
[310690970,1704641500851,-900.0,0.00035463,2]
[310690971,1704641500862,-900.0,0.00035463,2]
[310690972,1704641500876,-900.0,0.00035463,2]
[310690973,1704641500887,-900.0,0.00035463,2]
[310690974,1704641500898,-900.0,0.00035463,2]
[310690975,1704641500909,-900.0,0.00035463,2]
[310690976,1704641500919,-900.0,0.00035463,2]
[310690977,1704641500930,-900.0,0.00035463,2]
[310690978,1704641500941,-900.0,0.00035463,2]
[310690979,1704641500952,-900.0,0.00035463,2]
[310690980,1704641500962,-900.0,0.00035463,2]
[310690981,1704641500971,-900.0,0.00035463,2]
[310690982,1704641500980,-687.0,0.00035463,2]
[310690983,1704641500991,-312.61203003,0.00035463,2]
[310690984,1704641501000,-150.0,0.00035474,7]
[310690985,1704641501011,-2240.99323147,0.0003548,14]
[310690986,1704641501021,-333.40107,0.00035498,4]
[310690987,1704641501031,-656.32607668,0.000355,2]
[310690988,1704641501042,-13001.41962242,0.000355,2]
[310690989,1704641501052,-5000.0,0.000355,15]
[310690990,1704641501061,-2000.0,0.000355,8]
[310690991,1704641501072,-5000.0,0.000355,7]
[310690992,1704641501083,-199.95769249,0.000355,30]
[310690993,1704641501096,-450.0,0.000355,3]
[310690994,1704641501108,-500.0,0.00035502,2]
[310690995,1704641501118,-155.76493732,0.00035528,14]
[310690996,1704641501129,-161.95627693,0.00035542,14]
[310690997,1704641501142,-2100.03,0.00035556,7]
[310690998,1704641501154,-2100.03,0.00035556,7]
[310690999,1704641501164,-156.53609999,0.00035587,14]
[310691000,1704641501174,-150.0,0.000356,30]
[310691001,1704641501184,-1000.0,0.000356,2]
[310691002,1704641501195,-3346.0,0.000356,2]
[310691003,1704641501206,-750.0,0.000356,2]
[310691004,1704641501215,-150.0,0.00035605,7]
[310691005,1704641501225,-1000.0,0.00035607,7]
[310691006,1704641501235,-1000.0,0.00035607,7]
[310691007,1704641501245,-1000.0,0.00035607,7]
[310691008,1704641501255,-1000.0,0.00035607,7]
[310691009,1704641501264,-1000.0,0.00035607,7]
[310691010,1704641501274,-155.61285522,0.00035615,14]
[310691011,1704641501283,-150.0,0.00035616,2]
[310691012,1704641501293,-300.0,0.00035616,7]
[310691013,1704641501302,-450.0,0.00035616,12]
[310691014,1704641501311,-600.0,0.00035616,17]
[310691015,1704641501321,-213.31905324,0.00035616,22]
[310691016,1704641501330,-153.84,0.00035616,2]
[310691017,1704641501339,-155.0,0.00035617,2]
[310691018,1704641501350,-175.0,0.0003563,41]
[310691019,1704641501360,-450.0,0.0003566,3]
[310691020,1704641501370,-150.0,0.00035665,120]
[310691021,1704641501379,-150.0,0.00035672,120]
[310691022,1704641501390,-155.61285522,0.00035681,14]
[310691023,1704641501400,-500.0,0.000357,120]
[310691024,1704641501409,-2046.0,0.000357,5]
[310691025,1704641501421,-150.0,0.00035708,120]
[310691026,1704641501431,-159.257693,0.00035713,2]
[310691027,1704641501441,-160.492195,0.00035713,2]
[310691028,1704641501452,-1297.409063,0.00035713,2]
[310691029,1704641501462,-500.0,0.00035723,7]
[310691030,1704641501475,-155.80831798,0.00035732,14]
[310691031,1704641501485,-5000.0,0.0003575,15]
[310691032,1704641501494,-150.0,0.00035751,7]
[310691033,1704641501505,-150.31151548,0.00035751,2]
[310691034,1704641501514,-150.0,0.00035752,120]
[310691035,1704641501524,-155.61285522,0.00035752,14]
[310691036,1704641501534,-158.19184009,0.00035754,14]
[310691037,1704641501545,-582.54913738,0.00035754,14]
[310691038,1704641501555,-450.0,0.00035772,10]
[310691039,1704641501565,-156.8327423,0.00035784,14]
[310691040,1704641501575,-159.40890222,0.00035795,14]
[310691041,1704641501585,-3191.88,0.00035798,2]
[310691042,1704641501595,-234.40107,0.00035798,4]
[310691043,1704641501605,-543051.04524227,0.000358,3]
[310691044,1704641501615,-150.0,0.000358,30]
[310691045,1704641501626,-2000.0,0.000358,2]
[310691046,1704641501637,-1000.0,0.000358,2]
[310691047,1704641501648,-1000.0,0.000358,2]
[310691048,1704641501658,-255.13724169,0.00035803,14]
[310691049,1704641501668,-450.0,0.0003582,3]
[310691050,1704641501679,-2100.03,0.0003583,7]
[310691051,1704641501689,-2100.03,0.0003583,7]
[310691052,1704641501700,-150.0,0.00035833,7]
[310691053,1704641501710,-582.54913738,0.00035863,14]
[310691054,1704641501720,-582.54913738,0.00035869,14]
[310691055,1704641501730,-5452.79634009,0.00035888,30]
[310691056,1704641501740,-582.54913738,0.00035895,14]
[310691057,1704641501751,-161.95627693,0.00035896,14]
[310691058,1704641501761,-46280.0,0.00035898,20]
[310691059,1704641501770,-1075.0,0.00035898,20]
[310691060,1704641501780,-461.0,0.00035898,20]
[310691061,1704641501789,-1000.0,0.00035918,10]
[310691062,1704641501799,-500.0,0.00035944,7]
[310691063,1704641501810,-2240.99323147,0.00035946,14]
[310691064,1704641501820,-150.0,0.0003595,120]